Cogmind - Beta 14 @@@ ROGUE MODE // 2024.08.10 @ 16:08:54 Player: saltine Result: Self-destructed Performance ------------- Evolutions (0) 0 Regions Visited (4) 800 Robots Destroyed (21) 105 Value Destroyed (566) 566 Prototype IDs (7) 140 Alien Tech Used (0) 0 Bonus (300) 300 TOTAL SCORE: 1911 Bonus ------- Registered with UFD 300 Cogmind --------- Core Integrity 158/250 Matter 280/300 Energy 22/250 System Corruption 0% Temperature Cool (0) Movement Treading (160) Location -7/Scraptown Parts ------- > --- POWER (1) -------- Ion Engine > --- PROPULSION (2) --- Light Treads Light Treads > --- UTILITY (2) ------ Large Storage Unit Experimental Terrain Scanner > --- WEAPON (2) ------- Junk Cannon > --- INVENTORY (15) --- Improved Deuterium Engine Wheel Compact Wheel Scrap Suit Cooling System Improved Light Armor Plating Spread Laser Spread Laser Grenade Launcher Grenade Launcher Ripper Botcube Peak State ------------ > --- POWER ------------ Ion Engine > --- PROPULSION ------- Light Treads Light Treads > --- UTILITY ---------- Large Storage Unit Experimental Terrain Scanner > --- WEAPON ----------- Junk Cannon > --- INVENTORY -------- Improved Deuterium Engine Wheel Compact Wheel Scrap Suit Cooling System Light Armor Plating Light Armor Plating Improved Light Armor Plating Spread Laser Spread Laser Grenade Launcher Grenade Launcher Ripper Botcube [Rating: 29] Favorites ----------- Power Ion Engine Engine Ion Engine Propulsion Light Treads Treads Light Treads Leg Aluminum Leg Utility Large Storage Unit Device Experimental Terrain Scanner Storage Large Storage Unit Protection Layered Light Armor Plating Weapon Beam Cannon Energy Gun Medium Laser Energy Cannon Beam Cannon Ballistic Gun Light Assault Rifle Ballistic Cannon Light Cannon Launcher Grenade Launcher Special Weapon Junk Cannon Build | -11 -10 -10 -7 -7 ------- Run | Yrd Mat Sub Rec Scr Slots Evolved . | . . . . . Power . | . . . . . Propulsion . | . . . . . Utility . | . . . . . Weapon . | . . . . . Parts Attached 17 | 2 8 2 3 2 Power 1 | . . 1 . . Engine 1 | . . 1 . . Core . | . . . . . Reactor . | . . . . . Propulsion 3 | 2 . . 1 . Treads 3 | 2 . . 1 . Leg . | . . . . . Wheel . | . . . . . Hover . | . . . . . Flight . | . . . . . Utility 7 | . 4 . 2 1 Device 1 | . . . . 1 Storage 2 | . 2 . . . Processor . | . . . . . Hackware . | . . . . . Protection 4 | . 2 . 2 . Artifact . | . . . . . Weapon 6 | . 4 1 . 1 Energy Gun . | . . . . . Energy Cannon 2 | . 1 1 . . Ballistic Gun . | . . . . . Ballistic Cannon 2 | . 2 . . . Launcher 1 | . 1 . . . Special Weapon 1 | . . . . 1 Impact Weapon . | . . . . . Slashing Weapon . | . . . . . Piercing Weapon . | . . . . . Special Melee Weapon . | . . . . . Unidentified Prototypes 1 | . . . . 1 Parts Lost 3 | . . 2 1 . Power 1 | . . 1 . . Propulsion 1 | . . . 1 . Utility . | . . . . . Weapon 1 | . . 1 . . Highest Loss Streak 1 | . . 1 1 . To Critical Strikes . | . . . . . Average Slot Usage (%) 96 | . 97 100 99 95 Engine 14 | . 14 14 14 14 Treads 27 | . 28 28 27 28 Device 2 | . . . . 3 Storage 14 | . 14 14 14 14 Protection 11 | . 11 14 14 10 Energy Cannon 18 | . 12 16 28 19 Ballistic Gun 1 | . 4 . . . Ballistic Cannon 2 | . 8 11 . . Special Weapon 2 | . . . . 4 Peak Build Rating 29 | 6 8 8 12 29 Average Rating 13 | 6 7 7 11 16 On Entrance 8 | 6 6 8 8 12 Naked Turns . | . . . . . Heaviest Build 43 | 11 32 34 35 43 Greatest Support 40 | 40 40 40 40 40 Greatest Overweight (x) 1 | . . . . 1 Average Overweight (x) . | . . . . . Largest Inventory Capacity 15 | 8 15 15 15 15 Average Capacity 13 | 8 10 15 15 15 Most Carried 15 | 6 11 11 12 15 Average Carried 11 | 4 9 10 11 12 Final Capacity 15 | 8 15 15 15 15 Final Carried 13 | 4 11 10 12 13 Class Distribution -------------------- 100% | Mutant Dominant Class ---------------- Mutant | -10/Materials Mutant | -10/Subcaves Mutant | -7/Recycling Mutant | -7/Scraptown Resources | -11 -10 -10 -7 -7 ----------- Run | Yrd Mat Sub Rec Scr Matter Collected 528 | 213 196 89 20 10 Remotely . | . . . . . Salvage Created 526 | . 378 81 67 . Parts 24 | . 18 4 2 . Haulers Intercepted 1 | . 1 . . . Recyclers Shooed . | . . . . . Parts Field Recycled . | . . . . . Retrieved Matter . | . . . . . Parts Self-Destructed 4 | . . 4 . . Prevented . | . . . . . Kills | -11 -10 -10 -7 -7 ------- Run | Yrd Mat Sub Rec Scr Combat Hostiles Destroyed 17 | . 12 4 1 . Cannons 12 | . 7 4 1 . AOE 5 | . 5 . . . Classes Destroyed 7 | . 5 1 1 . Hauler 1 | . 1 . . . Turret 2 | . . 2 . . Watcher 1 | . 1 . . . Swarmer 7 | . 3 4 . . Grunt 7 | . 7 . . . Sentry 1 | . . . 1 . Subdweller 2 | . 2 . . . Best Kill Streak 4 | . 3 4 1 . Combat Bots Only 3 | . 3 2 1 . Max Kills in Single Turn 3 | . 3 1 1 . Gunslinging . | . . . . . Exploded 3 | . 3 . . . Melee . | . . . . . Uniques/NPCs Destroyed . | . . . . . Combat | -11 -10 -10 -7 -7 -------- Run | Yrd Mat Sub Rec Scr Hostile Shots Fired 130 | . 36 67 27 . Missed 44 | . 6 31 7 . Damage Taken 743 | . 334 274 135 . Core 92 | . 22 41 29 . Absorbed by Shields . | . . . . . Core Remaining (%) 100 | 100 . . . . Volleys Fired 74 | . 34 21 4 15 Largest 2 | . 2 2 2 1 Hottest 120 | . 95 120 120 . Shots Fired 127 | . 62 42 8 15 Gun 10 | . 10 . . . Cannon 100 | . 50 42 8 . Launcher 2 | . 2 . . . Special 15 | . . . . 15 Kinetic 46 | . 26 20 . . Thermal 64 | . 34 22 8 . Explosive 2 | . 2 . . . Electromagnetic . | . . . . . Impact 15 | . . . . 15 Robot Hit Streak 11 | . 8 5 11 . Robot Miss Streak 5 | . 4 5 . 1 Penetration Max . | . . . . . Secondary Targets . | . . . . . Shots Hit Robots 63 | . 36 20 7 . Core Hits 30 | . 19 8 3 . Critical Kills . | . . . . . Critical Parts Destroyed . | . . . . . Critical Strikes 3 | . 3 . . . Burn 2 | . 2 . . . Blast 1 | . 1 . . . Melee Attacks . | . . . . . Impact . | . . . . . Slashing . | . . . . . Piercing . | . . . . . Sneak Attacks . | . . . . . Combat Hostiles . | . . . . . Follow-up Attacks . | . . . . . Damage Inflicted 1304 | . 796 386 122 . Guns 54 | . 54 . . . Cannons 1051 | . 543 386 122 . Explosions 199 | . 199 . . . Melee . | . . . . . Ramming . | . . . . . Kinetic 391 | . 256 135 . . Thermal 714 | . 341 251 122 . Explosive 199 | . 199 . . . Electromagnetic . | . . . . . Impact . | . . . . . Slashing . | . . . . . Piercing . | . . . . . Highest Corruption . | . . . . . Average Corruption . | . . . . . Corruption Purged . | . . . . . Corruption Blocked . | . . . . . Overload Shots . | . . . . . Overflow Damage . | . . . . . Projectiles . | . . . . . Explosions . | . . . . . Melee . | . . . . . Knockbacks 5 | . 3 2 . . Impact . | . . . . . Kinetic 5 | . 3 2 . . Secondary . | . . . . . Self-Inflicted Damage . | . . . . . Shots . | . . . . . Rammed . | . . . . . Targets Rammed . | . . . . . Kicked . | . . . . . Crushed . | . . . . . Highest Temperature 462 | . 462 9 306 . Average Temperature 120 | . 119 6 154 . Received Heat Transfer 324 | . 156 138 30 . Effects 2 | . 2 . . . Damage (minor) 2 | . 2 . . . Siege Activations . | . . . . . Robots Corrupted . | . . . . . Combat Hostiles . | . . . . . Parts Fried . | . . . . . Impact Corruptions . | . . . . . Robots Melted . | . . . . . Combat Hostiles . | . . . . . Parts Melted 4 | . 3 . 1 . Heat Transferred 1665 | . 888 518 259 . Parts Sabotaged . | . . . . . Parts Stolen . | . . . . . Parts Stripped . | . . . . . Power Chain Reactions . | . . . . . Alert | -11 -10 -10 -7 -7 ------- Run | Yrd Mat Sub Rec Scr Peak Influence 204 | . 204 . 138 . Initial 120 | . . . 120 . Average 88 | . 78 . 132 . Maximum Alert Level 1 | . 1 . . . Low Security (%) 83 | 100 79 . 100 . Level 1 16 | . 20 . . . Level 2 . | . . . . . Level 3 . | . . . . . Level 4 . | . . . . . Level 5 . | . . . . . High Security . | . . . . . Max Security . | . . . . . Squads Dispatched 1 | . 1 . . . Investigation 1 | . 1 . . . Extermination . | . . . . . Reinforcement . | . . . . . Assault . | . . . . . Garrison . | . . . . . Intercept . | . . . . . Searches Triggered . | . . . . . Construction Impeded . | . . . . . Haulers Reinforced . | . . . . . Active Scanning Responses . | . . . . . Cargo Convoy Interrupts . | . . . . . Stealth | -11 -10 -10 -7 -7 --------- Run | Yrd Mat Sub Rec Scr Distress Signals 1 | . 1 . . . Communications Jammed . | . . . . . Distress Signals . | . . . . . Times Spotted 26 | . 18 7 1 . Peak Tracking Total 5 | . 5 4 1 . Tactical Retreats 3 | . . 3 . . Traps | -11 -10 -10 -7 -7 ------- Run | Yrd Mat Sub Rec Scr Traps Triggered . | . . . . . Indirectly . | . . . . . Trap Hack Attempts . | . . . . . Triggered . | . . . . . Disarmed . | . . . . . Reprogrammed . | . . . . . Reused . | . . . . . Traps Extracted . | . . . . . Installed . | . . . . . Triggered . | . . . . . Machines | -11 -10 -10 -7 -7 ---------- Run | Yrd Mat Sub Rec Scr Machines Disabled 4 | . 2 2 . . Max in Single Turn 1 | . 1 1 . . Machines Repaired . | . . . . . Machines Dismantled . | . . . . . Machines Sabotaged . | . . . . . Overloaded Fab Kills . | . . . . . Hacking | -11 -10 -10 -7 -7 --------- Run | Yrd Mat Sub Rec Scr Machines Accessed 14 | . 9 . 1 4 Terminals 8 | . 7 . 1 . Fabricators . | . . . . . Repair Stations . | . . . . . Recycling Units 2 | . 2 . . . Scanalyzers . | . . . . . Garrison Access . | . . . . . Total Hacks 62 | . 38 . 8 16 Successful 44 | . 23 . 5 16 Failed 18 | . 15 . 3 . Catastrophic 2 | . 2 . . . Database Lockouts . | . . . . . Manual 25 | . 23 . 2 . Terminals 38 | . 30 . 8 . Fabricators . | . . . . . Repair Stations . | . . . . . Recycling Units 8 | . 8 . . . Scanalyzers . | . . . . . Garrison Access . | . . . . . Terminal Hacks 29 | . 9 . 4 16 Record 9 | . . . . 9 Robot Analysis 9 | . 2 . . 7 Emergency Access Points 1 | . 1 . . . Terminal Index 2 | . 2 . . . Maintenance Status 1 | . 1 . . . Patrol Status 2 | . 1 . 1 . Hauler Manifests 3 | . 2 . 1 . Registered Components 1 | . . . 1 . Registered Prototypes 1 | . . . 1 . Fabricator Hacks . | . . . . . Repair Station Hacks . | . . . . . Recycling Unit Hacks 4 | . 4 . . . Process 1 | . 1 . . . Report Inventory 1 | . 1 . . . Retrieve Components 2 | . 2 . . . Scanalyzer . | . . . . . Garrison Access Hacks . | . . . . . Unauthorized Hacks 11 | . 10 . 1 . Terminals 7 | . 6 . 1 . Assimilate 1 | . 1 . . . Botnet 4 | . 3 . 1 . Disrupt 1 | . 1 . . . Operators 1 | . 1 . . . Fabricators . | . . . . . Repair Stations . | . . . . . Recycling Units 4 | . 4 . . . Monitor 1 | . 1 . . . Reject 1 | . 1 . . . Recyclers 1 | . 1 . . . Mask 1 | . 1 . . . Scanalyzers . | . . . . . Garrison Access . | . . . . . Data Cores Recovered . | . . . . . Used . | . . . . . Hacking Detections 10 | . 9 . 1 . Full Trace Events . | . . . . . Feedback Events . | . . . . . Feedback Blocked . | . . . . . Robot Schematics Acquired . | . . . . . Robots Built . | . . . . . Authchips . | . . . . . Time . | . . . . . Total Robot Build Rating . | . . . . . Part Schematics Acquired . | . . . . . Parts Built . | . . . . . Authchips . | . . . . . Time . | . . . . . Total Part Build Rating . | . . . . . Parts Repaired . | . . . . . Time . | . . . . . Parts Recycled . | . . . . . Recycled Matter . | . . . . . Retrieved Matter . | . . . . . Retrieved Components 12 | . 12 . . . Parts Scanalyzed . | . . . . . Part Schematics Acquired . | . . . . . Parts Damaged . | . . . . . Bothacking | -11 -10 -10 -7 -7 ------------ Run | Yrd Mat Sub Rec Scr Used RIF Installer . | . . . . . Robots Hacked . | . . . . . Non-combat . | . . . . . Combat . | . . . . . Robot Hacks Applied . | . . . . . Relay Couplers Released . | . . . . . Fabnet Peak Effective % . | . . . . . Robots Rewired . | . . . . . Allies Hacked . | . . . . . Hacks Repelled . | . . . . . Allies | -11 -10 -10 -7 -7 -------- Run | Yrd Mat Sub Rec Scr Total Allies 1 | . 1 . . . Largest Group 1 | . 1 1 1 1 Highest-Rated Group 10 | . 10 10 10 10 Highest-Rated Ally 10 | . 10 10 10 10 Total Orders 4 | . 2 2 . . STAY 2 | . 1 1 . . FOLLOW 2 | . 1 1 . . Ally Attacks . | . . . . . Total Damage . | . . . . . Kills . | . . . . . Allies Corrupted . | . . . . . Allies Melted . | . . . . . Intel | -11 -10 -10 -7 -7 ------- Run | Yrd Mat Sub Rec Scr Robot Analysis Total 9 | . 2 . . 7 Derelict Logs Recovered 1 | . . 1 . . Drone Launches . | . . . . . Drone Recoveries . | . . . . . Exploration | -11 -10 -10 -7 -7 ------------- Run | Yrd Mat Sub Rec Scr Turns Passed 4843 | 11 1294 235 310 2993 Spaces Moved 2373 | 5 553 104 157 1554 Core . | . . . . . Treads 2373 | 5 553 104 157 1554 Legs . | . . . . . Wheels . | . . . . . Hover . | . . . . . Flight . | . . . . . Fastest Speed 160 | 160 160 160 160 160 Average Speed 160 | 160 160 160 160 161 Slowest Speed 240 | 160 160 160 160 240 Overloaded Moves . | . . . . . Propulsion Burnouts . | . . . . . Robots Hopped . | . . . . . Cave-ins Triggered . | . . . . . Exploration Rate (%) 47 | 2 96 14 32 91 Regions Visited 4 Branch Regions 3 Pre-discovered Areas . | . . . . . Known Exits Taken 1 | . . 1 . . Unknown Exits Taken 3 | 1 1 . 1 . Scrap Searched 9 | . . . . 9 Spaces Dug 7 | . . . . 7 Terrain Destroyed 15 | . 5 . . 10 Melee . | . . . . . Projectile 10 | . . . . 10 AOE 5 | . 5 . . . Terrain Rammed . | . . . . . Walls Destroyed . | . . . . . Machines Disabled . | . . . . . Actions | -11 -10 -10 -7 -7 --------- Run | Yrd Mat Sub Rec Scr Total 3274 | 8 900 131 207 2028 Wait 783 | . 291 4 42 446 Move 2369 | 4 552 103 156 1554 Hop . | . . . . . Pick Up 15 | . 10 1 1 3 Fast Attach 5 | . 2 . 1 2 Attach 3 | . . 2 1 . Detach 3 | . . . 1 2 Swap 9 | 2 6 . 1 . Drop 13 | 2 5 . . 6 Fire 74 | . 34 21 4 15 Melee . | . . . . . Ram . | . . . . . Kick . | . . . . . Crush . | . . . . . Escape Stasis . | . . . . . Rewire . | . . . . . Trap . | . . . . . Miscellaneous . | . . . . . Route ------- -11/Scrapyard -10/Materials (discovered 6 exits: [*Mat x3] / [*Min x2] / [*Sub]) -10/Subcaves -7/Recycling -7/Scraptown (discovered 2 exits: [*Fac x2]) History --------- Turn | Location | Event 6 | -11/Scrapyard | Discovered new exit (range 3) 12 | -11/Scrapyard | Entered Materials 244 | -10/Materials | Discovered new exit (range 3) 318 | -10/Materials | Build established: Mutant 334 | -10/Materials | Discovered new exit (range 16) 412 | -10/Materials | Discovered new exit (range 12) 559 | -10/Materials | Discovered new exit (range 14) 1089 | -10/Materials | Discovered new exit (range 6) 1112 | -10/Materials | Derelicts attacked the area 1296 | -10/Materials | Discovered new exit (range 8) 1306 | -10/Materials | Entered Subcaves 1306 | -10/Subcaves | Accompanied by 1 ally 1313 | -10/Subcaves | Identified exit to Recycling 1541 | -10/Subcaves | Entered Recycling 1541 | -7/Recycling | Accompanied by 1 ally 1773 | -7/Recycling | Scanned before Scraplab entrance 1795 | -7/Recycling | Entered Scraplab 1808 | -7/Recycling | Discovered new exit (range 4) 1851 | -7/Recycling | Entered Scraptown 1851 | -7/Scraptown | Accompanied by 1 ally 2472 | -7/Scraptown | Discovered new exit (range 7) 2658 | -7/Scraptown | Visited Spacefarers 2703 | -7/Scraptown | Visited Bundlers 2842 | -7/Scraptown | Visited Shadow of the Wyrm 2869 | -7/Scraptown | Visited Awakened 2899 | -7/Scraptown | Visited TADAMA 3120 | -7/Scraptown | Visited UFD Registry 3120 | -7/Scraptown | Registered with UFD as "Gammaparser" 3143 | -7/Scraptown | Visited Cyclists 3165 | -7/Scraptown | Entered Cyclist Reading Room 3282 | -7/Scraptown | Visited Research Penetration Think Tank 3354 | -7/Scraptown | Visited Junk Repository 3501 | -7/Scraptown | Discovered new exit (range 5) 3576 | -7/Scraptown | Visited Junk Repository 3621 | -7/Scraptown | Visited Analyses Database 3658 | -7/Scraptown | Visited Scrap Suit Storage 3882 | -7/Scraptown | Visited Botcube Research 3893 | -7/Scraptown | Found Botcube 3920 | -7/Scraptown | Visited Infowarlord's Domain 3942 | -7/Scraptown | Visited Junk Cannon Lab 3964 | -7/Scraptown | Found Prototype Special Weapon 3964 | -7/Scraptown | Identified Junk Cannon 4047 | -7/Scraptown | Found Exp. Terrain Scanner 4729 | -7/Scraptown | Found Scrap Suit 4733 | -7/Scraptown | Found Scrap Suit 4787 | -7/Scraptown | Attacked by Scraptown defenders 4844 | -7/Scraptown | Self-destructed Last Messages --------------- 04047_ Acquired Exp. Terrain Scanner. CP-WKY: Thank you for participating in Infowarlord's survey. You may keep that as a reward for participation, and I will mark down your preference here. Good choice, by the way. I would've picked the same. Sorry I couldn't tell you earlier, trying to keep folks honest in a survey isn't always easy. 04119_ A sign before the barrier simply reads "NO DIGGING". 04608_ Junk Cannon collects and crushes CPS Tube. 04619_ Junk Cannon collects and crushes Humpback (+5 shots). 04620_ Junk Cannon collects and crushes Lrg. Storage Unit (+4 shots). WT-WJG(p): Scrap be with you. 04710_ Junk Cannon collects and crushes Scrap Suit (+5 shots). 04728_ Dropped Beam Cannon. 04729_ Acquired Scrap Suit. 04730_ Dropped Lgt. Armor Plating. 04733_ Acquired Scrap Suit. 04785_ Dropped Scrap Suit. 04787_ Junk Cannon collects and crushes Scrap Suit (+6 shots). 04787_ ANNOUNCEMENT: Intruder alert! Defend Scraptown! Map ----- +----------------------------------------------------+ | ""##?####??#####?????????? | | "## " "###????##?????####?##??? | | "## """"##?####?????#??##??????# | | "## """"###??#?###?####???#?#?#? | | "##########?#########????####?##? | | "#?#??###??###????#???###?#?##?## | | "############?#?#?#####??##?#???? | | "## #"""""# ??#?##?#?????####### | | "## ]! !# ?###??##?#???#?##?## | | !] ##"##?##?##?#?##??##### | | "## X" #??#?#??????#######? | | "## #?#?##?####????#?### | | "## #?#??##???#?##?#??## | | ## !!!! !##?#??#???#????#?#?? | | # #"""""#""#?##?######?##???#?? | | " #############?###?##??#?#??????? | | # #?#?#?????#??????####?#??##?##?# | | # #?##???##??##?##?######??##?##?# | | # ##???###???##?###??##?????#????# | | # ##?##?????######??##??###????#?# | | # ##?######?#####??#??###??##?#?## | | # ##?##????##???#???#??#?#???#???# | | # ###############???#?##?##?#??### | | # # #####?######?#??#? | | # #; #####g####?# ??? | | # # og @#?####???? | | # # ## # #?##??##?? | | # # ############???##?? | | # ##############????#?####?###??#? | | # ######??##?#######?#?###?###???# | | # """"#???#????#?##????####??##?#? | | # "" "#?#???##?###??#?####?????#?? | | "##???####?#?#??#??####?##??# | | " "#??#??#?#?#?##?#??#??##????? | | """"####?#??#??##??#??###?##???? | | ## ######?###??#?#??###?##??##??#??# | | #######?????##?#?#??#??#?########### | | #??#?#????#?##???#???????????###?##? | | ##?#?#?##????#?##?#???#??#???#?#?### | | ####?#?###??#?#?###???#??????#?###?? | | ?###?#??#####??#??##########???????# | | ##??###??#?##??####???#??#??#?#?#?#? | | ###?#######?###??#?##???#??????#?##? | | ?##????#???#?###???###?##??##?##?#?? | | ???##??#???#??#?##?##???####??#?##?? | | ????#???????##?#??##?#???#####??#??? | | #?#??#???##??#####??????#?####?????? | | ?#?#?##?#?????####?##?###???#?#????? | | ?#?##???##???#?##??#?##?#?#??#????#? | | ??#?######??##???#####??#???#??????? | +----------------------------------------------------+ Best States ------------- Heat Dissipation 25 Energy Generation 10 Energy Capacity 250 Matter Stores 300 Matter Capacity 300 Sight Range 16 Terrain Scan Range 30 Terrain Scan Density 10 Armor Coverage 150 Evasion (%) 40 Recoil Reduction 2 Item Schematics ----------------- None Robot Schematics ------------------ None Fabricated ------------ Nothing Alien Tech Used ----------------- None Achievements -------------- None Challenges ------------ None Game ------ Seed SpectralSapperNeutralizer Manual? 0 Play Time 00:26:48 Cumulative 127.7 hours Start 2024.08.10 @ 15:40:33 End 2024.08.10 @ 16:08:54 Sessions 1 Manual Loads 0 Difficulty Rogue Special Mode None Game No. 107 Rogue 107 Adventurer 0 Explorer 0 Win Type - Total 4 Types 2/0/2/0/0/0/0/0/0 Lore% 60 Gallery% 60 Achievement% 56 Wizard Run 0 Options --------- Layout 0 ASCII 0 Keyboard 0 Movement Arrows Keybinds 0 Fullscreen 2 Font 18/SmallcapsGlow Map View 76x50 Zoom Use 0% Tactical HUD 1 Map Filters NONE Filters NONE Steam 1 RUN: a930b20e-46a2-4789-9701-1e365bdf6a6a